[Event "32nd NATO Chess Championship"]
[Site "Tartu, Estonia"]
[Date "2022.06.27"]
[Round "1.1"]
[White "Csizmadia, Csaba"]
[Black "Stein, Robert"]
[Result "0-1"]
[TimeControl "90 min + 30 sec increment from move one"]
[BlackTitle "FM"]
[WhiteFideId "763942"]
[BlackFideId "12921084"]
[WhiteElo "1875"]
[BlackElo "2365"]

1. d4 {[%clk 01:30:57]} {[%emt 00:00:02]} Nf6 {[%clk 01:30:21]} {[%emt
00:00:35]} 2. c4 {[%clk 01:31:18]} {[%emt 00:00:13]} c5 {[%clk 01:29:53]}
{[%emt 00:00:58]} 3. e3 {[%clk 01:31:41]} {[%emt 00:00:08]} g6 {[%clk
01:29:47]} {[%emt 00:00:35]} 4. Nc3 {[%clk 01:32:03]} {[%emt 00:00:09]} Bg7
{[%clk 01:28:42]} {[%emt 00:01:34]} 5. Nf3 {[%clk 01:32:05]} {[%emt 00:00:28]}
O-O {[%clk 01:26:36]} {[%emt 00:02:35]} 6. Be2 {[%clk 01:32:10]} {[%emt
00:00:26]} cxd4 {[%clk 01:26:46]} {[%emt 00:00:20]} 7. exd4 {[%clk 01:32:27]}
{[%emt 00:00:14]} d5 {[%clk 01:26:34]} {[%emt 00:00:40]} 8. h3 {[%clk
01:32:41]} {[%emt 00:00:16]} dxc4 {[%clk 01:24:48]} {[%emt 00:02:17]} 9. Bxc4
{[%clk 01:32:58]} {[%emt 00:00:13]} Nc6 {[%clk 01:21:43]} {[%emt 00:03:35]} 10.
a3 {[%clk 01:32:54]} {[%emt 00:00:34]} Bf5 {[%clk 01:19:49]} {[%emt 00:02:23]}
11. O-O {[%emt 00:03:10]} Ne4 {[%clk 01:11:26]} {[%emt 00:06:12]} 12. Be3
{[%clk 01:32:19]} {[%emt 00:01:07]} Rc8 {[%clk 01:08:13]} {[%emt 00:03:43]} 13.
Ba2 {[%clk 01:32:31]} {[%emt 00:00:17]} Nxc3 {[%clk 01:05:23]} {[%emt
00:03:21]} 14. bxc3 {[%clk 01:32:53]} {[%emt 00:00:08]} Na5 {[%clk 01:05:49]}
{[%emt 00:00:04]} 15. Rc1 {[%clk 01:32:24]} {[%emt 00:00:58]} Qd6 {[%clk
00:57:51]} {[%emt 00:08:28]} 16. Qa4 {[%clk 01:30:00]} {[%emt 00:02:54]} Qa6
{[%clk 00:54:06]} {[%emt 00:04:15]} 17. Rfd1 {[%clk 01:28:22]} {[%emt
00:02:08]} b5 {[%clk 00:48:44]} {[%emt 00:05:53]} 18. Qb4 {[%clk 01:28:13]}
{[%emt 00:00:39]} Nc4 {[%clk 00:47:18]} {[%emt 00:01:56]} 19. Bxc4 {[%clk
01:27:11]} {[%emt 00:01:32]} Rxc4 {[%clk 00:47:36]} {[%emt 00:00:11]} 20. Qb2
{[%clk 01:26:29]} {[%emt 00:01:12]} Rfc8 {[%clk 00:44:32]} {[%emt 00:03:35]} 21.
Nd2 {[%clk 01:23:46]} {[%emt 00:03:13]} Ra4 {[%clk 00:41:46]} {[%emt 00:03:15]}
22. Ra1 {[%clk 01:24:09]} {[%emt 00:00:08]} Qc6 {[%clk 00:37:34]} {[%emt
00:04:42]} 23. Rdc1 {[%clk 01:24:17]} {[%emt 00:00:23]} Be6 {[%clk 00:36:05]}
{[%emt 00:01:57]} 24. f3 {[%clk 01:23:10]} {[%emt 00:01:37]} Bd5 {[%clk
00:35:38]} {[%emt 00:00:58]} 25. Kf2 {[%clk 01:16:04]} {[%emt 00:07:36]} a6
{[%clk 00:34:59]} {[%emt 00:01:09]} 26. Nb3 {[%emt 00:03:36]} Bxb3 {[%clk
00:32:54]} {[%emt 00:02:16]} 27. Qxb3 {[%clk 01:13:25]} {[%emt 00:00:23]} Rc4
{[%clk 00:31:49]} {[%emt 00:01:33]} 28. Bd2 {[%clk 01:11:24]} {[%emt 00:02:31]}
e5 {[%clk 00:30:53]} {[%emt 00:01:27]} 29. dxe5 {[%clk 01:06:48]} {[%emt
00:05:06]} Bxe5 {[%clk 00:30:23]} {[%emt 00:00:59]} 30. Rab1 {[%clk 01:06:37]}
{[%emt 00:00:42]} Qd6 {[%clk 00:25:52]} {[%emt 00:05:00]} 31. Rc2 {[%clk
01:01:34]} {[%emt 00:05:34]} Bd4+ {[%clk 00:25:01]} {[%emt 00:01:20]} 32. Kf1
{[%clk 00:55:20]} {[%emt 00:06:44]} Qh2 {[%clk 00:24:23]} {[%emt 00:01:07]} 33.
cxd4 {[%clk 00:55:12]} {[%emt 00:00:38]} Rxc2 {[%clk 00:24:45]} {[%emt
00:00:10]} 34. Rb2 {[%clk 00:54:22]} {[%emt 00:01:20]} Qh1+ {[%clk 00:25:03]}
{[%emt 00:00:11]} 35. Kf2 {[%clk 00:54:36]} {[%emt 00:00:17]} Qd1 {[%clk
00:25:12]} {[%emt 00:00:20]} 36. Rxc2 {[%clk 00:54:30]} {[%emt 00:00:36]} Rxc2
{[%clk 00:25:25]} {[%emt 00:00:17]} 0-1

[Event "32nd NATO Chess Championship"]
[Site "Tartu, Estonia"]
[Date "2022.06.27"]
[Round "1.2"]
[White "Pedersen, Finn"]
[Black "Heran-Boily, Samuel"]
[Result "1-0"]
[TimeControl "90 min + 30 sec increment from move one"]
[WhiteTitle "FM"]
[WhiteFideId "1400762"]
[BlackFideId "1554565"]
[WhiteElo "2300"]
[BlackElo "1871"]

1. Nf3 {[%clk 01:27:56]} {[%emt 00:03:03]} d5 {[%clk 01:30:43]} {[%emt
00:00:17]} 2. d4 {[%clk 01:28:19]} {[%emt 00:00:07]} Nf6 {[%clk 01:31:06]}
{[%emt 00:00:07]} 3. Bg5 {[%clk 01:28:39]} {[%emt 00:00:10]} Ne4 {[%clk
01:30:43]} {[%emt 00:00:54]} 4. Bf4 {[%clk 01:28:53]} {[%emt 00:00:16]} c5
{[%clk 01:30:44]} {[%emt 00:00:29]} 5. c3 {[%clk 01:28:49]} {[%emt 00:00:33]}
cxd4 {[%clk 01:31:03]} {[%emt 00:00:11]} 6. cxd4 {[%clk 01:28:18]} {[%emt
00:01:02]} Qb6 {[%clk 01:31:22]} {[%emt 00:00:11]} 7. Qc1 {[%clk 01:27:19]}
{[%emt 00:01:28]} Nc6 {[%clk 01:30:29]} {[%emt 00:01:24]} 8. e3 {[%clk
01:27:31]} {[%emt 00:00:17]} f6 {[%clk 01:23:45]} {[%emt 00:07:14]} 9. h3
{[%clk 01:23:31]} {[%emt 00:04:30]} e5 {[%clk 01:17:56]} {[%emt 00:06:19]} 10.
dxe5 {[%clk 01:22:59]} {[%emt 00:01:02]} Bb4+ {[%clk 01:17:45]} {[%emt
00:00:41]} 11. Nc3 {[%clk 01:22:51]} {[%emt 00:00:37]} Qa5 {[%clk 01:15:45]}
{[%emt 00:02:32]} 12. a3 {[%clk 01:23:01]} {[%emt 00:00:20]} Bxc3+ {[%clk
01:15:30]} {[%emt 00:00:45]} 13. bxc3 {[%clk 01:23:04]} {[%emt 00:00:27]} Nxc3
{[%clk 01:13:00]} {[%emt 00:03:00]} 14. Qd2 {[%clk 01:23:01]} {[%emt 00:00:32]}
Ne4 {[%clk 00:53:36]} {[%emt 00:19:55]} 15. Qxa5 {[%clk 01:23:08]} {[%emt
00:00:23]} Nxa5 {[%clk 00:53:54]} {[%emt 00:00:11]} 16. exf6 {[%clk 01:22:52]}
{[%emt 00:00:46]} gxf6 {[%clk 00:53:31]} {[%emt 00:00:54]} 17. Bb5+ {[%clk
01:21:22]} {[%emt 00:01:59]} Nc6 {[%clk 00:45:57]} {[%emt 00:08:04]} 18. Nd2
{[%clk 01:18:40]} {[%emt 00:03:10]} Bd7 {[%clk 00:39:01]} {[%emt 00:07:28]} 19.
Nxe4 {[%clk 01:17:06]} {[%emt 00:02:05]} dxe4 {[%clk 00:39:20]} {[%emt
00:00:11]} 20. O-O {[%clk 01:17:04]} {[%emt 00:00:30]} Rg8 {[%clk 00:31:30]}
{[%emt 00:08:20]} 21. Bc4 {[%clk 01:15:45]} {[%emt 00:01:50]} Rg7 {[%clk
00:31:45]} {[%emt 00:00:15]} 22. Bd5 {[%clk 01:15:12]} {[%emt 00:01:03]} f5
{[%clk 00:29:27]} {[%emt 00:02:49]} 23. Rab1 {[%clk 01:13:01]} {[%emt
00:02:40]} b6 {[%clk 00:28:43]} {[%emt 00:01:15]} 24. Rfc1 {[%clk 01:10:45]}
{[%emt 00:02:44]} Rc8 {[%clk 00:28:57]} {[%emt 00:00:16]} 25. Kh2 {[%clk
01:06:50]} {[%emt 00:04:25]} Rg6 {[%clk 00:27:10]} {[%emt 00:02:19]} 26. g4
{[%clk 01:02:17]} {[%emt 00:05:02]} Rf6 {[%clk 00:22:56]} {[%emt 00:04:44]} 27.
g5 {[%clk 01:01:18]} {[%emt 00:01:28]} Rg6 {[%clk 00:22:48]} {[%emt 00:00:39]}
28. h4 {[%clk 01:01:39]} {[%emt 00:00:08]} Ne7 {[%clk 00:19:32]} {[%emt
00:03:47]} 29. h5 {[%clk 00:59:05]} {[%emt 00:03:03]} Rg7 {[%clk 00:18:03]}
{[%emt 00:02:00]} 30. Bb7 {[%clk 00:55:55]} {[%emt 00:03:40]} Rd8 {[%clk
00:16:41]} {[%emt 00:01:53]} 31. Rc7 {[%clk 00:45:46]} {[%emt 00:10:38]} Rf7
{[%clk 00:17:02]} {[%emt 00:00:08]} 32. Rd1 {[%clk 00:42:03]} {[%emt 00:04:13]}
Be6 {[%clk 00:16:28]} {[%emt 00:01:05]} 33. Rd6 {[%clk 00:39:12]} {[%emt
00:03:20]} Rxd6 {[%clk 00:15:36]} {[%emt 00:01:23]} 34. Bxd6 {[%clk 00:39:31]}
{[%emt 00:00:11]} Nd5 {[%clk 00:15:26]} {[%emt 00:00:40]} 35. Bc6+ {[%clk
00:36:39]} {[%emt 00:03:21]} Kd8 {[%clk 00:15:46]} {[%emt 00:00:11]} 36. Rxf7
{[%clk 00:35:47]} {[%emt 00:01:22]} Bxf7 {[%clk 00:16:06]} {[%emt 00:00:10]} 37.
Kg3 {[%clk 00:30:40]} {[%emt 00:05:37]} Ne7 {[%clk 00:15:36]} {[%emt 00:01:00]}
38. Bxe7+ {[%clk 00:30:35]} {[%emt 00:00:35]} Kxe7 {[%clk 00:16:01]} {[%emt
00:00:05]} 39. Kf4 {[%clk 00:30:30]} {[%emt 00:00:35]} Ke6 {[%clk 00:14:53]}
{[%emt 00:01:38]} 40. Bb7 {[%clk 00:29:57]} {[%emt 00:01:03]} Bxh5 {[%clk
00:15:06]} {[%emt 00:00:16]} 41. Bc8+ {[%clk 00:30:19]} {[%emt 00:00:09]} Kd5
{[%clk 00:15:23]} {[%emt 00:00:14]} 42. Kxf5 {[%clk 00:29:28]} {[%emt
00:01:20]} Bg6 {[%clk 00:15:23]} {[%emt 00:00:30]} 43. Kf6 {[%clk 00:24:25]}
{[%emt 00:05:33]} b5 {[%clk 00:14:30]} {[%emt 00:01:23]} 44. Be6+ {[%clk
00:22:48]} {[%emt 00:02:07]} Kd6 {[%clk 00:12:52]} {[%emt 00:02:09]} 45. Bf5
{[%clk 00:18:16]} {[%emt 00:05:01]} a5 {[%clk 00:10:40]} {[%emt 00:02:42]} 46.
Bxg6 {[%clk 00:18:25]} {[%emt 00:00:22]} hxg6 {[%clk 00:10:42]} {[%emt
00:00:27]} 47. Kxg6 {[%clk 00:18:50]} {[%emt 00:00:04]} b4 {[%clk 00:10:58]}
{[%emt 00:00:15]} 48. axb4 {[%clk 00:19:10]} {[%emt 00:00:10]} axb4 {[%clk
00:10:48]} {[%emt 00:00:40]} 49. Kf6 {[%clk 00:17:54]} {[%emt 00:01:45]} b3
{[%clk 00:10:58]} {[%emt 00:00:22]} 50. g6 {[%clk 00:18:20]} {[%emt 00:00:04]}
b2 {[%clk 00:11:24]} {[%emt 00:00:04]} 51. g7 {[%clk 00:18:44]} {[%emt
00:00:05]} b1=Q {[%clk 00:11:40]} {[%emt 00:00:15]} 52. g8=Q {[%clk 00:19:08]}
{[%emt 00:00:06]} Qb2 {[%clk 00:08:07]} {[%emt 00:04:03]} 53. Kg5 {[%clk
00:15:57]} {[%emt 00:03:35]} Qxf2 {[%clk 00:07:44]} {[%emt 00:00:58]} 54. Qd8+
{[%clk 00:16:05]} {[%emt 00:00:22]} Ke6 {[%clk 00:06:23]} {[%emt 00:01:51]} 55.
Qb6+ {[%clk 00:16:16]} {[%emt 00:00:18]} Ke7 {[%clk 00:05:59]} {[%emt
00:00:55]} 56. Qb7+ {[%clk 00:16:30]} {[%emt 00:00:16]} Kd6 {[%clk 00:05:22]}
{[%emt 00:01:07]} 57. Qb4+ {[%clk 00:16:31]} {[%emt 00:00:29]} Kd7 {[%clk
00:05:41]} {[%emt 00:00:11]} 58. Qd4+ {[%clk 00:16:28]} {[%emt 00:00:33]} Kc7
{[%clk 00:05:37]} {[%emt 00:00:33]} 59. Qe5+ {[%clk 00:16:35]} {[%emt
00:00:23]} Kd7 {[%clk 00:05:45]} {[%emt 00:00:22]} 60. Qd5+ {[%clk 00:15:35]}
{[%emt 00:01:31]} Kc7 {[%clk 00:06:03]} {[%emt 00:00:12]} 61. Qxe4 {[%clk
00:15:45]} {[%emt 00:00:20]} Qg3+ {[%clk 00:05:20]} {[%emt 00:01:13]} 62. Kf6
{[%clk 00:15:39]} {[%emt 00:00:36]} Qd6+ {[%clk 00:04:58]} {[%emt 00:00:52]} 63.
Qe6 {[%clk 00:15:50]} {[%emt 00:00:19]} Qd3 {[%clk 00:04:00]} {[%emt 00:01:28]}
64. Qe5+ {[%clk 00:14:18]} {[%emt 00:02:02]} Kd8 {[%clk 00:03:58]} {[%emt
00:00:32]} 65. e4 {[%clk 00:08:12]} {[%emt 00:06:36]} Qf3+ {[%clk 00:04:07]}
{[%emt 00:00:20]} 66. Qf5 {[%clk 00:08:12]} {[%emt 00:00:31]} Qc3+ {[%clk
00:03:33]} {[%emt 00:01:04]} 67. e5 {[%clk 00:07:15]} {[%emt 00:01:27]} Qd4
{[%clk 00:03:11]} {[%emt 00:00:51]} 68. Kf7 {[%clk 00:07:02]} {[%emt 00:00:42]}
Qa7+ {[%clk 00:03:29]} {[%emt 00:00:14]} 69. Kg6 {[%clk 00:06:16]} {[%emt
00:01:16]} Qe7 {[%clk 00:03:41]} {[%emt 00:00:17]} 70. Qf6 {[%clk 00:06:16]}
{[%emt 00:00:30]} Ke8 {[%clk 00:03:52]} {[%emt 00:00:20]} 71. Qc6+ {[%clk
00:06:33]} {[%emt 00:00:13]} Kf8 {[%clk 00:03:35]} {[%emt 00:00:47]} 72. Qf3+
{[%clk 00:06:38]} {[%emt 00:00:24]} Ke8 {[%clk 00:03:25]} {[%emt 00:00:40]} 73.
Qf6 {[%clk 00:05:38]} {[%emt 00:01:31]} Kd7 {[%clk 00:03:00]} {[%emt 00:00:55]}
74. Qf7 {[%clk 00:05:26]} {[%emt 00:00:41]} Kd8 {[%clk 00:03:09]} {[%emt
00:00:21]} 75. e6 {[%clk 00:05:23]} {[%emt 00:00:34]} Qe8 {[%clk 00:03:19]}
{[%emt 00:00:20]} 76. Kf6 {[%clk 00:05:18]} {[%emt 00:00:36]} Qh8+ {[%clk
00:03:32]} {[%emt 00:00:17]} 77. Kg5 {[%clk 00:05:02]} {[%emt 00:00:46]} Qe8
{[%clk 00:03:05]} {[%emt 00:00:57]} 78. Kg6 {[%clk 00:04:43]} {[%emt 00:00:48]}
Qe7 {[%clk 00:03:16]} {[%emt 00:00:18]} 79. Qf6 {[%clk 00:01:52]} {[%emt
00:03:22]} Ke8 {[%clk 00:02:43]} {[%emt 00:01:03]} 80. Qh8+ {[%emt 00:01:08]}
Qf8 {[%emt 00:00:04]} 81. Qxf8+ {[%emt 00:00:02]} 1-0

[Event "32nd NATO Chess Championship"]
[Site "Tartu, Estonia"]
[Date "2022.06.27"]
[Round "1.3"]
[White "Graham, Frazer"]
[Black "Pavlidis, Anastasios"]
[Result "0-1"]
[TimeControl "90 min + 30 sec increment from move one"]
[BlackTitle "IM"]
[WhiteFideId "479993"]
[BlackFideId "4208404"]
[WhiteElo "1864"]
[BlackElo "2296"]

1. e4 {[%clk 01:30:50]} {[%emt 00:00:09]} d6 {[%clk 01:30:17]} {[%emt
00:00:42]} 2. d4 {[%clk 01:30:24]} {[%emt 00:00:57]} Nf6 {[%clk 01:30:36]}
{[%emt 00:00:11]} 3. Nc3 {[%clk 01:30:36]} {[%emt 00:00:19]} Nbd7 {[%clk
01:30:51]} {[%emt 00:00:13]} 4. Nf3 {[%clk 01:30:44]} {[%emt 00:00:23]} e5
{[%clk 01:30:56]} {[%emt 00:00:24]} 5. Bc4 {[%clk 01:28:47]} {[%emt 00:02:29]}
Be7 {[%clk 01:31:11]} {[%emt 00:00:13]} 6. O-O {[%clk 01:26:19]} {[%emt
00:03:00]} O-O {[%clk 01:31:28]} {[%emt 00:00:11]} 7. Bb3 {[%clk 01:22:49]}
{[%emt 00:04:02]} c6 {[%clk 01:26:14]} {[%emt 00:05:42]} 8. a4 {[%clk
01:22:02]} {[%emt 00:01:18]} b6 {[%clk 01:26:00]} {[%emt 00:00:44]} 9. Qe2
{[%clk 01:14:12]} {[%emt 00:08:20]} Qc7 {[%clk 01:21:28]} {[%emt 00:05:01]} 10.
Rd1 {[%clk 01:07:59]} {[%emt 00:06:45]} a6 {[%clk 01:19:12]} {[%emt 00:02:45]}
11. Bg5 {[%clk 01:00:44]} {[%emt 00:07:45]} Rb8 {[%clk 01:15:07]} {[%emt
00:04:32]} 12. Nh4 {[%clk 00:58:27]} {[%emt 00:02:50]} exd4 {[%clk 01:12:25]}
{[%emt 00:03:11]} 13. Rxd4 {[%clk 00:56:12]} {[%emt 00:02:47]} Nc5 {[%clk
01:11:03]} {[%emt 00:01:50]} 14. Rad1 {[%clk 00:51:39]} {[%emt 00:05:04]} Bg4
{[%clk 01:04:27]} {[%emt 00:07:05]} 15. Nf3 {[%clk 00:50:14]} {[%emt 00:01:56]}
Rbd8 {[%clk 00:57:15]} {[%emt 00:07:39]} 16. Bf4 {[%clk 00:36:16]} {[%emt
00:14:31]} Nh5 {[%clk 00:50:39]} {[%emt 00:07:03]} 17. Be3 {[%clk 00:33:30]}
{[%emt 00:03:17]} g6 {[%clk 00:39:01]} {[%emt 00:12:07]} 18. R4d2 {[%clk
00:25:37]} {[%emt 00:08:24]} Nxb3 {[%clk 00:35:42]} {[%emt 00:03:50]} 19. cxb3
{[%clk 00:25:56]} {[%emt 00:00:12]} b5 {[%clk 00:36:00]} {[%emt 00:00:11]} 20.
b4 {[%clk 00:23:56]} {[%emt 00:02:30]} Qc8 {[%clk 00:28:48]} {[%emt 00:07:41]}
21. a5 {[%clk 00:21:55]} {[%emt 00:02:33]} Rde8 {[%clk 00:21:16]} {[%emt
00:08:01]} 22. Bh6 {[%clk 00:20:30]} {[%emt 00:01:55]} Ng7 {[%clk 00:20:09]}
{[%emt 00:01:36]} 23. Qe3 {[%clk 00:16:52]} {[%emt 00:04:08]} f5 {[%clk
00:19:36]} {[%emt 00:01:03]} 24. Bxg7 {[%clk 00:12:40]} {[%emt 00:04:43]} Kxg7
{[%clk 00:19:26]} {[%emt 00:00:39]} 25. h3 {[%clk 00:12:52]} {[%emt 00:00:19]}
fxe4 {[%clk 00:10:18]} {[%emt 00:09:38]} 26. hxg4 {[%clk 00:09:20]} {[%emt
00:04:03]} exf3 {[%clk 00:10:39]} {[%emt 00:00:07]} 27. gxf3 {[%clk 00:08:05]}
{[%emt 00:01:45]} d5 {[%clk 00:11:02]} {[%emt 00:00:07]} 28. Kg2 {[%clk
00:08:07]} {[%emt 00:00:28]} Bd6 {[%clk 00:09:48]} {[%emt 00:01:43]} 29. Qd3
{[%clk 00:05:07]} {[%emt 00:03:32]} Rf4 {[%clk 00:07:22]} {[%emt 00:02:55]} 30.
Ne4 {[%clk 00:03:40]} {[%emt 00:01:58]} dxe4 {[%clk 00:07:15]} {[%emt
00:00:36]} 31. Qxd6 {[%clk 00:04:04]} {[%emt 00:00:06]} exf3+ {[%clk 00:07:24]}
{[%emt 00:00:22]} 32. Kh2 {[%clk 00:03:19]} {[%emt 00:01:15]} Qxg4 {[%clk
00:06:31]} {[%emt 00:01:22]} 33. Qd7+ {[%clk 00:03:31]} {[%emt 00:00:19]} Kh6
{[%clk 00:06:43]} {[%emt 00:00:16]} 34. Qxg4 {[%clk 00:03:40]} {[%emt
00:00:23]} Rxg4 {[%clk 00:07:04]} {[%emt 00:00:08]} 35. Rd4 {[%clk 00:03:10]}
{[%emt 00:01:01]} Ree4 {[%clk 00:06:04]} {[%emt 00:01:29]} 36. Rxe4 {[%clk
00:02:40]} {[%emt 00:00:59]} Rxe4 {[%clk 00:06:29]} {[%emt 00:00:06]} 37. Kg3
{[%clk 00:02:36]} {[%emt 00:00:34]} Rxb4 {[%clk 00:06:48]} {[%emt 00:00:11]}
0-1

[Event "32nd NATO Chess Championship"]
[Site "Tartu, Estonia"]
[Date "2022.06.27"]
[Round "1.4"]
[White "Wang, Eigen"]
[Black "Korge, Kersti"]
[Result "1-0"]
[TimeControl "90 min + 30 sec increment from move one"]
[WhiteFideId "2008777"]
[BlackFideId "4502310"]
[WhiteElo "2293"]
[BlackElo "1864"]

1. d4 {[%clk 01:30:45]} {[%emt 00:00:14]} Nf6 {[%clk 01:30:54]} {[%emt
00:00:06]} 2. Nf3 {[%clk 01:30:59]} {[%emt 00:00:16]} g6 {[%clk 01:31:15]}
{[%emt 00:00:09]} 3. c4 {[%clk 01:31:13]} {[%emt 00:00:17]} c5 {[%clk
01:30:58]} {[%emt 00:00:47]} 4. d5 {[%clk 01:31:29]} {[%emt 00:00:14]} b5
{[%clk 01:31:23]} {[%emt 00:00:05]} 5. Qc2 {[%clk 01:31:07]} {[%emt 00:00:52]}
b4 {[%clk 01:29:48]} {[%emt 00:02:05]} 6. a3 {[%clk 01:29:00]} {[%emt
00:02:37]} bxa3 {[%clk 01:29:56]} {[%emt 00:00:22]} 7. Rxa3 {[%clk 01:27:07]}
{[%emt 00:02:23]} d6 {[%clk 01:30:01]} {[%emt 00:00:24]} 8. e4 {[%clk
01:26:33]} {[%emt 00:01:04]} Nxe4 {[%clk 01:29:17]} {[%emt 00:01:15]} 9. Qxe4
{[%clk 01:25:09]} {[%emt 00:01:54]} Bf5 {[%clk 01:29:35]} {[%emt 00:00:12]} 10.
Qf4 {[%clk 01:22:48]} {[%emt 00:02:51]} Bxb1 {[%clk 01:29:19]} {[%emt
00:00:46]} 11. Ng5 {[%clk 01:18:46]} {[%emt 00:04:31]} f6 {[%clk 01:27:37]}
{[%emt 00:02:12]} 12. Ne6 {[%clk 01:19:03]} {[%emt 00:00:13]} Qb6 {[%clk
01:27:51]} {[%emt 00:00:16]} 13. Bd3 {[%clk 01:10:50]} {[%emt 00:08:43]} Bxd3
{[%clk 01:28:09]} {[%emt 00:00:12]} 14. Rxd3 {[%clk 01:11:15]} {[%emt
00:00:05]} Qa5+ {[%clk 01:23:19]} {[%emt 00:05:21]} 15. Bd2 {[%clk 01:07:03]}
{[%emt 00:04:42]} Qa1+ {[%clk 01:23:24]} {[%emt 00:00:25]} 16. Bc1 {[%clk
01:07:24]} {[%emt 00:00:09]} Qa5+ {[%clk 01:23:46]} {[%emt 00:00:08]} 17. Rc3
{[%clk 01:05:57]} {[%emt 00:01:57]} Na6 {[%clk 01:20:04]} {[%emt 00:04:12]} 18.
O-O {[%clk 01:02:14]} {[%emt 00:04:12]} Nc7 {[%clk 01:20:13]} {[%emt 00:00:21]}
19. Qe3 {[%clk 01:00:46]} {[%emt 00:01:59]} Kf7 {[%clk 01:16:02]} {[%emt
00:04:40]} 20. Ra3 {[%clk 00:57:50]} {[%emt 00:03:26]} Qb6 {[%clk 01:16:16]}
{[%emt 00:00:16]} 21. Rb3 {[%clk 00:56:22]} {[%emt 00:01:58]} Qa5 {[%clk
01:16:04]} {[%emt 00:00:41]} 22. Bd2 {[%clk 00:55:15]} {[%emt 00:01:38]} Nxd5
{[%clk 01:14:36]} {[%emt 00:01:59]} 23. cxd5 {[%clk 00:55:37]} {[%emt
00:00:08]} Qa4 {[%clk 01:14:49]} {[%emt 00:00:17]} 24. Nc7 {[%clk 00:53:41]}
{[%emt 00:02:25]} Rd8 {[%clk 01:15:01]} {[%emt 00:00:18]} 25. Qe6+ {[%clk
00:53:38]} {[%emt 00:00:33]} Kg7 {[%clk 01:15:22]} {[%emt 00:00:08]} 26. Rb7
{[%clk 00:53:38]} {[%emt 00:00:30]} g5 {[%clk 01:11:54]} {[%emt 00:03:59]} 27.
Bc3 {[%clk 00:52:06]} {[%emt 00:02:02]} Kg6 {[%clk 01:11:22]} {[%emt 00:01:02]}
28. f4 {[%clk 00:51:04]} {[%emt 00:01:32]} Qd7 {[%clk 01:09:47]} {[%emt
00:02:05]} 29. fxg5 {[%clk 00:50:56]} {[%emt 00:00:38]} Kxg5 {[%clk 01:09:45]}
{[%emt 00:00:32]} 30. Qxd7 {[%clk 00:50:46]} {[%emt 00:00:40]} 1-0

[Event "32nd NATO Chess Championship"]
[Site "Tartu, Estonia"]
[Date "2022.06.27"]
[Round "1.5"]
[White "Giedraitis, Mingaudas"]
[Black "Papasimakopoulos, Alexandros"]
[Result "0-1"]
[TimeControl "90 min + 30 sec increment from move one"]
[BlackTitle "CM"]
[WhiteFideId "12808806"]
[BlackFideId "4244125"]
[WhiteElo "1846"]
[BlackElo "2259"]

1. d4 {[%emt 00:12:15]} Nf6 {[%emt 00:00:11]} 2. Bf4 {[%emt 00:00:28]} e6
{[%emt 00:00:13]} 3. e3 {[%emt 00:00:42]} c5 {[%emt 00:00:07]} 4. Nf3 {[%emt
00:04:50]} Qb6 {[%emt 00:00:10]} 5. Na3 {[%emt 00:00:48]} cxd4 {[%emt
00:01:41]} 6. exd4 {[%emt 00:01:53]} Bxa3 {[%emt 00:01:34]} 7. bxa3 {[%emt
00:00:09]} Qa5+ {[%emt 00:01:04]} 8. Bd2 {[%emt 00:04:09]} Qxa3 {[%emt
00:00:10]} 9. Bd3 {[%emt 00:00:37]} b6 {[%emt 00:00:48]} 10. O-O {[%emt
00:07:07]} Ba6 {[%emt 00:00:12]} 11. Ne5 {[%emt 00:15:36]} Bxd3 {[%emt
00:01:50]} 12. Qf3 {[%emt 00:05:32]} d5 {[%emt 00:00:24]} 13. Nxd3 {[%emt
00:04:11]} Nc6 {[%emt 00:00:20]} 14. Qg3 {[%emt 00:05:44]} O-O {[%emt
00:01:53]} 15. Bh6 {[%emt 00:10:09]} Ne8 {[%emt 00:00:47]} 16. c3 {[%emt
00:03:01]} Ne7 {[%emt 00:00:08]} 17. Bd2 {[%emt 00:01:15]} Nf5 {[%emt
00:00:42]} 18. Qf3 {[%emt 00:01:54]} Nf6 {[%emt 00:00:34]} 19. Rfc1 {[%emt
00:03:21]} Ne4 {[%emt 00:00:47]} 20. Be1 {[%emt 00:00:35]} Rfc8 {[%emt
00:00:20]} 21. Ne5 {[%emt 00:03:50]} f6 {[%emt 00:01:30]} 22. Ng4 {[%emt
00:01:20]} h5 {[%emt 00:03:05]} 23. Ne3 {[%emt 00:00:26]} Nxd4 {[%emt
00:02:21]} 24. Qxh5 {[%emt 00:01:34]} Nxc3 {[%emt 00:00:31]} 25. Bxc3 {[%emt
00:03:43]} Rxc3 {[%emt 00:00:17]} 26. Rxc3 {[%emt 00:00:44]} Qxc3 {[%emt
00:00:07]} 27. Rd1 {[%emt 00:00:10]} Nc6 {[%emt 00:01:09]} 28. g4 {[%emt
00:03:43]} Qe5 {[%emt 00:01:23]} 29. Qg6 {[%emt 00:02:04]} d4 {[%emt 00:01:36]}
30. Nc4 {[%emt 00:00:59]} Qe2 {[%emt 00:00:19]} 31. Rc1 {[%emt 00:00:31]} Ne7
{[%emt 00:00:20]} 32. Qh5 {[%emt 00:01:32]} Rc8 {[%emt 00:02:31]} 33. Kg2
{[%emt 00:00:11]} g6 {[%emt 00:06:03]} 34. Qb5 {[%emt 00:01:13]} Qxg4+ {[%emt
00:00:18]} 35. Kf1 {[%emt 00:00:28]} Qh3+ {[%emt 00:00:44]} 36. Kg1 {[%emt
00:01:06]} Kf8 {[%emt 00:00:33]} 37. Re1 {[%emt 00:00:36]} Rc5 {[%emt
00:00:10]} 0-1